bitfinex/quotes_ETHUSD_20250425
["timestamp","ask_amount","ask_price","bid_price","bid_amount"]
[1745604540551,19.44326995,1791.7,1791.1,0.8069]
[1745604540703,19.14782397,1791.7,1791.1,0.8069]
[1745604541047,13.56626995,1791.7,1791.1,0.8069]
[1745604541482,6.11,1791.7,1791.1,0.8069]
[1745604541750,6.11,1791.7,1791.2,0.8187]
[1745604542051,5.217,1791.8,1791.2,0.8187]
[1745604542436,17.82983537,1791.9,1791.2,0.8187]
[1745604542437,0.55803982,1791.9,1791.2,0.8187]
[1745604542761,6.13879457,1791.9,1791.2,0.8187]
[1745604542926,6.19506416,1791.8,1791.2,0.8187]
[1745604543317,11.77628664,1791.8,1791.2,0.8187]
[1745604543624,6.19506416,1791.8,1791.2,0.8187]
[1745604544444,5.5817527,1791.6,1791.2,0.8187]
[1745604546440,11.69173315,1791.6,1791.2,0.8187]
[1745604546639,6.75134487,1791.5,1791.2,0.8187]
[1745604546802,1.16917331,1791.5,1791.2,0.8187]
[1745604547448,11.69179764,1791.6,1791.2,0.8187]
[1745604547653,6.11,1791.6,1791.2,0.8187]
[1745604548718,6.11,1791.6,1791.3,0.88552394]
[1745604548898,6.11,1791.6,1791.3,0.8297]
[1745604549724,11.69044638,1792.0,1791.3,0.8297]
[1745604549957,6.11,1792.0,1791.4,0.58887082]
[1745604550116,6.11,1792.0,1791.5,0.8297]
[1745604553764,5.209,1792.1,1791.5,0.8297]
[1745604553911,6.11,1792.4,1791.6,0.58887082]
[1745604554141,14.32111131,1792.5,1791.8,0.58887082]
[1745604554476,11.318,1792.5,1791.9,0.751]
[1745604559583,5.208,1792.5,1791.9,0.751]
[1745604559954,5.208,1792.5,1792.1,0.7979]
[1745604560263,6.11,1792.7,1792.1,0.7979]
[1745604562755,6.11,1792.7,1792.1,3.0]
[1745604563087,6.11,1792.7,1792.3,0.765]
[1745604563442,6.11,1793.0,1792.3,0.765]
[1745604563639,6.11,1793.1,1792.5,0.765]
[1745604565696,5.57727504,1793.0,1792.5,0.765]
[1745604566285,12.51453525,1793.1,1792.5,0.765]
[1745604566489,1.25145353,1793.0,1792.5,0.765]
[1745604566670,12.51453525,1793.1,1792.5,0.765]
[1745604567002,6.9376,1793.1,1792.5,0.765]
[1745604567293,6.11,1793.1,1792.5,0.765]
[1745604568402,5.207,1793.2,1792.5,0.765]
[1745604569701,5.207,1793.2,1792.5,3.0]
[1745604569900,5.207,1793.2,1792.7,0.7943]
[1745604572159,5.5760297,1793.4,1792.7,0.7943]
[1745604572362,5.57691409,1793.2,1792.7,0.7943]
[1745604572790,6.32992857,1793.3,1792.7,0.7943]
[1745604573002,0.63299286,1793.2,1792.7,0.7943]
[1745604573520,12.43931396,1793.5,1792.7,0.85007865]
[1745604573675,5.57601832,1793.4,1792.7,0.7943]
[1745604573882,11.15227005,1793.4,1792.7,0.7943]
[1745604574213,5.57601832,1793.4,1792.7,0.7943]
[1745604575326,5.57620706,1793.4,1792.7,0.7943]
[1745604575480,7.37776615,1793.4,1792.7,0.7943]
[1745604576104,5.57655043,1793.3,1792.7,0.7943]
[1745604576995,7.96660809,1793.4,1792.7,0.7943]
[1745604576996,7.9666298,1793.4,1792.7,0.7943]
[1745604577884,1.80155909,1793.4,1792.7,0.7943]
[1745604578198,11.36147884,1793.6,1792.8,0.8139]
[1745604578399,5.57574264,1793.5,1792.8,0.8139]
[1745604578701,11.36147724,1793.6,1792.8,0.8139]
[1745604579234,5.197,1793.6,1792.9,0.8048]
[1745604579824,10.77239382,1793.6,1793.0,0.8048]
[1745604580032,5.197,1793.6,1793.0,0.8048]
[1745604580523,10.77247464,1793.6,1793.0,0.8048]
[1745604580730,5.197,1793.6,1793.0,0.8048]
[1745604580928,10.77247288,1793.6,1793.0,0.8048]
[1745604581698,16.34809653,1793.6,1793.0,0.8048]
[1745604581903,10.77247288,1793.6,1793.0,0.8048]
[1745604583221,5.197,1793.6,1793.0,0.8048]
[1745604583720,10.77242832,1793.6,1793.0,0.8048]
[1745604583922,5.197,1793.6,1793.0,0.8048]
[1745604584488,5.197,1793.6,1793.1,0.7511]
[1745604585520,6.38739892,1793.9,1793.1,0.7511]
[1745604585819,5.57491406,1793.8,1793.2,0.8253]
[1745604586198,1.22764223,1793.8,1793.2,0.8253]
[1745604586400,5.57566243,1793.6,1793.2,0.8253]
[1745604587583,5.57584089,1793.5,1793.2,0.8253]
[1745604587826,6.16441102,1793.6,1793.2,0.8253]
[1745604588025,5.5755402,1793.6,1793.2,0.8253]
[1745604588227,5.57520422,1793.7,1793.2,0.8253]
[1745604589327,5.57543093,1793.6,1793.2,0.8253]
[1745604589524,5.57520422,1793.7,1793.2,0.8253]
[1745604590296,11.15052256,1793.7,1793.2,0.8253]
[1745604590509,5.57520422,1793.7,1793.2,0.8253]
[1745604591430,5.57550284,1793.6,1793.2,0.8253]
[1745604593201,11.68489349,1793.8,1793.2,0.8253]
[1745604593604,11.68477296,1793.8,1793.2,0.8253]
[1745604593804,6.11,1793.8,1793.2,0.8253]
[1745604594516,11.68477895,1793.8,1793.2,0.8253]
[1745604594690,5.575164,1793.7,1793.2,0.8253]
[1745604594895,5.57562189,1793.6,1793.2,0.8253]
[1745604595320,5.57515684,1793.7,1793.2,0.8253]
[1745604596242,0.58887082,1793.7,1793.2,0.8253]
[1745604596403,0.58887082,1793.7,1792.6,0.3]
[1745604596404,1.39217082,1793.5,1792.7,0.7634]
[1745604596737,5.57650068,1793.3,1792.7,5.9584]
[1745604596902,11.15309247,1793.3,1792.8,0.7634]
[1745604597107,5.57676706,1793.2,1792.8,0.7634]
[1745604597639,5.57684174,1793.2,1792.8,0.7634]
[1745604597839,6.7510632,1793.2,1792.8,0.7634]
[1745604600343,1.17422146,1793.2,1792.8,0.7634]
[1745604600915,11.15300203,1793.3,1792.8,0.7634]
[1745604601249,5.57662726,1793.2,1792.8,0.7634]
[1745604601545,5.57662361,1793.2,1792.8,0.7634]
[1745604603352,11.1528791,1793.3,1792.8,0.7634]
[1745604603528,11.15289542,1793.3,1792.8,0.7634]
[1745604603727,1.11528954,1793.2,1792.8,0.7634]
[1745604603929,5.57631693,1793.3,1792.8,0.7634]
[1745604604118,11.68610161,1793.4,1792.8,0.7634]
[1745604604811,6.11,1793.4,1792.8,0.7634]
[1745604605016,6.11,1793.4,1793.0,0.788]
[1745604606550,5.57581234,1793.5,1793.0,0.788]
[1745604606751,6.65289357,1793.5,1793.0,0.788]
[1745604607849,5.5761201,1793.4,1793.0,0.788]
[1745604608049,6.65289357,1793.5,1793.0,0.788]
[1745604609157,1.07708123,1793.5,1793.0,0.788]
[1745604609955,6.65277367,1793.5,1793.0,0.788]
[1745604611686,1.07708123,1793.5,1793.0,0.788]
[1745604611959,5.195,1793.6,1793.0,0.788]
[1745604612533,5.57549471,1793.6,1793.0,0.788]
[1745604612738,5.57526231,1793.7,1793.0,0.788]
[1745604612964,11.1505966,1793.7,1793.0,0.788]
[1745604613167,5.57526231,1793.7,1793.0,0.788]
[1745604613366,7.53326475,1793.7,1793.0,0.788]
[1745604613668,7.5331896,1793.7,1793.0,0.788]
[1745604614786,5.57655548,1793.3,1793.0,0.788]
[1745604615851,5.57617121,1793.4,1793.0,0.788]
[1745604617480,5.57641408,1793.3,1793.0,0.788]
[1745604617647,6.69167261,1793.3,1793.0,0.788]
[1745604617848,1.11525853,1793.3,1793.0,0.788]
[1745604618050,5.57617121,1793.4,1793.0,0.788]
[1745604618492,5.57640811,1793.3,1793.0,0.788]
[1745604618853,5.57617121,1793.4,1793.0,0.788]
[1745604619053,11.152402,1793.4,1793.0,0.788]
[1745604619351,5.57631558,1793.3,1793.0,0.788]
[1745604619549,6.69156426,1793.3,1793.0,0.788]
[1745604619788,5.57672557,1793.2,1793.0,0.788]
[1745604620895,5.57817693,1792.8,1792.4,0.41702219]
[1745604621187,5.57837964,1792.7,1792.6,0.7948]
[1745604621389,6.13540505,1792.9,1792.6,0.7948]
[1745604621849,5.57795595,1792.8,1792.4,0.7948]
[1745604622000,6.13540505,1792.9,1792.4,0.7948]
[1745604623597,0.55772448,1792.9,1792.4,0.7948]
[1745604623797,11.15628792,1792.8,1792.4,0.7948]
[1745604624022,0.7998,1792.8,1792.4,0.7948]
[1745604624333,0.58887082,1792.6,1792.2,0.796]
[1745604624503,5.57866014,1792.6,1792.2,0.796]
[1745604625034,5.57831503,1792.7,1792.2,0.796]
[1745604626109,12.57439316,1792.7,1792.2,0.796]
[1745604626423,5.57849852,1792.6,1792.2,0.796]
[1745604626807,12.57443077,1792.7,1792.2,0.796]
[1745604627004,6.9959532,1792.7,1792.2,0.796]
[1745604627242,12.57439569,1792.7,1792.2,0.796]
[1745604627622,5.57851817,1792.6,1792.2,0.796]
[1745604628346,6.83596531,1792.6,1792.2,0.796]
[1745604630919,1.25744714,1792.6,1792.2,0.796]
[1745604631124,6.11,1792.8,1792.2,0.796]
[1745604631553,11.68790209,1792.8,1792.2,0.796]
[1745604633648,5.57839989,1792.7,1792.2,0.796]
[1745604633859,1.16883999,1792.7,1792.2,0.796]
[1745604634148,5.57826838,1792.7,1792.2,0.796]
[1745604634449,11.68799746,1792.8,1792.2,0.796]
[1745604635652,5.57827591,1792.7,1792.2,0.796]
[1745604636143,5.57799746,1792.8,1792.2,0.796]
[1745604636657,11.1561201,1792.8,1792.2,0.796]
[1745604636828,7.30460947,1792.8,1792.2,0.796]
[1745604637647,1.72661201,1792.8,1792.2,0.796]
[1745604637854,5.57899661,1792.5,1792.2,0.796]
[1745604638056,5.578628,1792.6,1792.2,0.796]
[1745604638719,6.38730384,1792.7,1792.2,0.796]
[1745604638921,11.15672214,1792.7,1792.2,0.796]
[1745604639122,5.57859366,1792.6,1792.2,0.796]
[1745604639353,1.11568975,1792.6,1792.2,0.796]
[1745604639549,5.57859985,1792.6,1792.2,0.796]
[1745604641359,11.15672262,1792.7,1792.2,0.796]
[1745604641557,5.57830384,1792.7,1792.2,0.796]
[1745604641759,5.57851268,1792.6,1792.2,0.796]
[1745604642723,5.57881563,1792.5,1792.2,0.796]
[1745604642936,6.69454846,1792.5,1792.2,0.796]
[1745604643659,11.15865814,1792.4,1792.2,0.796]
[1745604643858,5.57964775,1792.3,1792.0,0.8138]
[1745604644030,5.57962105,1792.3,1792.0,0.8138]
[1745604644243,6.13758316,1792.3,1792.0,0.8138]
[1745604645260,5.57976554,1792.2,1792.0,0.8138]
[1745604645460,6.69475599,1792.5,1792.0,0.8138]
[1745604646342,5.57911777,1792.4,1792.0,0.8138]
[1745604647018,5.57746016,1793.0,1792.3,0.58887082]
[1745604647019,5.57736199,1793.0,1792.3,0.58887082]
[1745604647224,0.5577362,1792.9,1792.4,0.755]
[1745604647830,6.36367437,1793.1,1792.4,0.755]
[1745604648238,11.94084922,1793.1,1792.4,0.755]
[1745604648437,5.57736233,1793.0,1792.4,0.755]
[1745604648762,6.36370007,1793.1,1792.4,0.755]
[1745604649170,11.94090846,1793.1,1792.4,0.755]
[1745604649464,12.34883811,1793.0,1792.4,0.755]
[1745604649663,5.57756329,1792.9,1792.4,0.755]
[1745604650036,7.36023279,1793.0,1792.4,0.755]
[1745604650655,1.78296167,1793.0,1792.4,0.755]
[1745604650876,1.19409085,1793.0,1792.4,0.755]
[1745604651168,6.77154272,1793.0,1792.4,0.755]
[1745604652345,5.57764387,1792.9,1792.4,0.755]
[1745604652559,6.81254295,1792.9,1792.4,0.755]
[1745604652946,5.57787017,1792.8,1792.4,0.755]
[1745604653137,5.5777124,1792.9,1792.4,0.755]
[1745604653570,6.16614207,1793.0,1792.4,0.755]
[1745604653776,6.36363754,1793.1,1792.4,0.755]
[1745604654067,11.94083797,1793.1,1792.4,0.755]
[1745604654269,1.1940838,1793.0,1792.4,0.755]
[1745604654473,6.77144993,1793.0,1792.4,0.755]
[1745604654681,5.57798199,1792.8,1792.4,0.755]
[1745604655375,5.57769274,1792.9,1792.4,0.755]
[1745604656279,5.57875233,1792.6,1792.4,0.755]
[1745604656584,6.69445208,1792.6,1792.4,0.755]
[1745604657076,5.57880055,1792.5,1792.4,0.755]
[1745604657373,6.69445208,1792.6,1792.4,0.755]
[1745604658368,6.69444441,1792.6,1792.4,0.755]
[1745604659644,5.57880055,1792.5,1792.4,0.755]
[1745604659845,1.2273245,1792.5,1792.4,0.755]
[1745604660145,5.57874466,1792.6,1792.4,0.755]
[1745604660780,5.57836364,1792.7,1792.4,0.755]
[1745604661382,11.68774144,1792.9,1792.4,0.755]
[1745604661590,11.68758077,1792.9,1792.4,0.755]
[1745604662266,6.3750838,1793.0,1792.4,0.755]
[1745604662586,6.21520075,1792.9,1792.4,0.755]
[1745604662877,5.57789132,1792.8,1792.4,0.755]
[1745604663185,6.21520075,1792.9,1792.4,0.755]
[1745604663876,0.63750838,1792.9,1792.4,0.755]
[1745604664054,11.95249181,1793.0,1792.4,0.755]
[1745604664390,5.57795265,1792.8,1792.4,0.755]
[1745604664686,5.57764317,1792.9,1792.4,0.755]
[1745604665486,5.57756371,1792.9,1792.4,0.755]
[1745604665808,5.57755828,1792.9,1792.4,0.755]
[1745604665982,5.181,1793.0,1792.5,0.7959]
[1745604666294,5.181,1793.0,1792.5,0.85168265]
[1745604666460,5.181,1793.0,1792.5,0.7959]
[1745604666834,6.8916,1793.5,1792.8,0.7555]
[1745604666963,0.05,1793.9,1792.7,0.58887082]
[1745604666964,5.57552806,1793.6,1793.0,0.7703]
[1745604667362,5.57569357,1793.5,1793.0,0.7703]
[1745604668088,11.15126059,1793.6,1793.0,0.7703]
[1745604668380,5.57569437,1793.5,1793.0,0.7703]
[1745604669364,11.15123568,1793.6,1793.0,0.7703]
[1745604669688,3.7816,1793.7,1793.0,0.7703]
[1745604669689,1.11512357,1793.5,1793.0,0.7703]
[1745604669852,14.93216449,1793.7,1793.0,0.7703]
[1745604670053,5.57553805,1793.6,1793.0,0.7703]
[1745604671207,11.15116308,1793.6,1793.0,0.7703]
[1745604671580,5.57569295,1793.5,1793.0,0.7703]
[1745604671777,5.57602235,1793.4,1793.0,0.7703]
[1745604671977,1.11517186,1793.4,1793.0,0.7703]
[1745604672263,5.57569623,1793.5,1793.0,0.7703]
[1745604674771,3.7816,1793.7,1793.0,0.7703]
[1745604675079,5.57538372,1793.6,1793.0,0.7703]
[1745604675471,5.57586997,1793.5,1793.0,0.7703]
[1745604677875,11.15184571,1793.5,1793.0,0.7703]
[1745604678113,5.57618036,1793.4,1793.0,0.7703]
[1745604678318,5.57645281,1793.3,1793.0,0.7703]
[1745604678723,6.16505118,1793.4,1793.0,0.7703]
[1745604678911,5.57633925,1793.3,1793.0,0.7703]
[1745604679515,6.16506773,1793.4,1793.0,0.7703]
[1745604679699,0.61650677,1793.3,1793.0,0.7703]
[1745604680475,6.19287891,1793.3,1793.0,0.7703]
[1745604680705,6.19282712,1793.3,1793.0,0.7703]
[1745604680925,0.61650677,1793.3,1793.0,0.7703]
[1745604681418,6.19284197,1793.3,1793.0,0.7703]
[1745604681776,6.19594489,1793.2,1793.0,0.7703]
[1745604681992,5.5769338,1793.1,1792.9,0.7925]
[1745604682193,5.57736564,1793.0,1792.6,0.7925]
[1745604683401,5.5769338,1793.1,1792.6,0.7925]
[1745604683811,11.15412016,1793.1,1792.6,0.7925]
[1745604684147,5.57725146,1793.0,1792.6,0.7925]
[1745604685151,5.57817816,1792.7,1792.6,0.7925]
[1745604685448,5.57810509,1792.8,1792.6,0.7925]
[1745604685831,6.16627165,1793.0,1792.6,0.7925]
[1745604686450,5.57765799,1792.9,1792.6,0.7925]
[1745604686756,11.74376487,1793.0,1792.6,0.7925]
[1745604686952,13.66087811,1793.0,1792.6,0.7925]
[1745604687127,8.08338489,1793.0,1792.6,0.7925]
[1745604687331,13.66091667,1793.0,1792.6,0.7925]
[1745604687523,8.08338489,1793.0,1792.6,0.7925]
[1745604687725,1.91711324,1793.0,1792.6,0.7925]
[1745604688024,7.49441114,1793.0,1792.6,0.7925]
[1745604690249,1.91711324,1793.0,1792.6,0.7925]
[1745604690424,6.19605101,1793.2,1792.6,0.7925]
[1745604690757,5.57699192,1793.1,1792.6,0.7925]
[1745604690913,5.57728401,1793.0,1792.6,0.7925]
[1745604693467,5.57768536,1792.9,1792.6,0.7925]
[1745604693826,11.15479016,1793.0,1792.6,0.7925]
[1745604694022,6.83385011,1793.0,1792.6,0.7925]
[1745604694771,5.57756672,1792.9,1792.6,0.7925]
[1745604694951,6.83385011,1793.0,1792.6,0.7925]
[1745604696071,5.57710385,1793.1,1792.6,0.7925]
[1745604696356,11.15433492,1793.1,1792.6,0.7925]
[1745604696523,5.57710385,1793.1,1792.6,0.7925]
[1745604696724,5.57733706,1793.0,1792.6,0.7925]
[1745604697148,5.57768708,1792.9,1792.6,0.7925]
[1745604697338,1.11550241,1792.9,1792.6,0.7925]
[1745604697553,5.57766563,1792.9,1792.6,0.7925]
[1745604697746,5.57724484,1793.0,1792.6,0.7925]
[1745604698065,5.57880055,1792.5,1792.4,0.8312]
[1745604698368,5.57969607,1792.3,1792.2,0.8312]
[1745604699026,5.57929566,1792.4,1792.2,0.8312]
[1745604699227,0.55788006,1792.5,1792.2,0.8312]
[1745604699429,5.5786808,1792.6,1792.2,0.8312]
[1745604699627,5.57892761,1792.5,1792.2,0.8312]
[1745604701332,0.7803,1792.4,1792.0,0.8287]
[1745604701537,5.57953118,1792.3,1792.0,0.8287]
[1745604703577,5.57913143,1792.4,1792.0,0.8287]
[1745604707104,5.57911326,1792.4,1792.0,0.8287]
[1745604707308,17.96969919,1792.5,1792.0,0.8287]
[1745604707784,5.57920208,1792.4,1792.0,0.8287]
[1745604708586,5.57943015,1792.3,1792.0,0.8287]
[1745604708781,7.93409221,1792.4,1792.0,0.8287]
[1745604709245,2.35489013,1792.4,1792.0,0.8287]
[1745604710296,11.275,1792.5,1792.0,0.8287]
[1745604712048,5.165,1792.5,1792.0,0.8287]
[1745604712249,10.74392805,1792.5,1792.0,0.8287]
[1745604714248,5.57911988,1792.4,1792.0,0.8287]
[1745604714595,10.74392805,1792.5,1792.0,0.8287]
[1745604714749,1.07439281,1792.4,1792.0,0.8287]
[1745604715150,0.58887082,1792.3,1792.0,0.8287]
[1745604715380,6.65360297,1792.4,1792.0,0.8287]
[1745604715705,12.23294632,1792.4,1792.0,0.8287]
[1745604715919,5.57946332,1792.3,1792.0,0.8287]
[1745604716075,6.80276995,1792.3,1792.0,0.8287]
[1745604716901,1.22330663,1792.3,1792.0,0.8287]
[1745604717875,2.61327745,1792.3,1791.7,0.76]
[1745604718191,5.58086282,1791.9,1791.7,0.76]
[1745604718886,5.58098002,1791.8,1791.7,0.76]
[1745604719084,7.28586891,1791.9,1791.3,0.76]
[1745604719780,6.69699809,1791.9,1791.3,0.76]
[1745604720409,6.11,1792.0,1791.3,1.34887082]
[1745604720608,6.11,1792.0,1791.4,0.7649]
[1745604721079,11.69047803,1792.0,1791.4,0.7649]
[1745604721281,5.58132398,1791.7,1791.4,0.7649]
[1745604721582,0.8107,1791.6,1791.2,0.823]
[1745604721878,5.58212939,1791.5,1791.2,0.823]
[1745604722082,6.52141233,1791.5,1791.2,0.823]
[1745604722477,6.11,1791.6,1791.2,0.823]
[1745604722678,11.6916096,1791.6,1791.2,0.823]
[1745604724815,6.11,1791.6,1791.2,0.823]
[1745604724999,5.58196415,1791.5,1791.2,0.823]
[1745604726022,6.9027,1791.6,1791.1,0.05]
[1745604726023,6.17127458,1791.4,1791.1,0.05]
[1745604726232,5.58271171,1791.3,1791.1,0.05]
[1745604726648,5.58284948,1791.2,1791.1,0.05]
[1745604728295,11.69254172,1791.3,1791.1,0.05]
[1745604728489,11.69254172,1791.3,1791.1,0.8502]
[1745604728831,11.69254172,1791.3,1791.1,0.05]
[1745604728832,13.4200318,1791.3,1791.1,0.05]
[1745604729390,5.58284948,1791.2,1791.1,0.05]
[1745604730932,9.36264948,1791.2,1791.1,0.05]
[1745604731390,15.47264948,1791.2,1791.1,0.05]
[1745604731589,18.38479177,1791.2,1791.1,0.05]
[1745604732340,18.80718957,1791.2,1791.1,0.05]
[1745604732983,9.02214229,1791.2,1791.1,0.05]
[1745604733218,11.69284948,1791.2,1791.1,0.05]
[1745604734521,6.11,1791.2,1791.1,0.05]
[1745604734686,6.11,1791.2,1791.1,0.819]
[1745604734891,6.11,1791.3,1791.1,0.819]
[1745604735093,11.69259332,1791.3,1791.1,0.819]
[1745604735394,6.11,1791.3,1791.1,0.819]
[1745604735706,13.37806676,1791.3,1791.1,0.819]
[1745604737829,6.11,1791.3,1791.1,0.819]
[1745604738029,5.162,1791.4,1791.1,0.819]
[1745604741616,5.58144815,1791.7,1791.1,0.819]
[1745604742619,5.58141522,1791.7,1791.1,0.819]
[1745604743036,18.20600241,1791.8,1791.1,0.819]
[1745604743324,5.58133568,1791.7,1791.1,0.819]
[1745604743751,22.30034323,1791.8,1791.1,0.819]
[1745604743929,16.85313159,1791.8,1791.1,0.819]
[1745604744440,22.43436881,1791.8,1791.1,0.819]
[1745604744753,5.58129436,1791.7,1791.1,0.819]
[1745604744954,5.58233773,1791.4,1791.1,0.819]
[1745604745131,5.58215724,1791.5,1791.1,0.819]
[1745604746526,5.58252272,1791.4,1791.1,0.819]
[1745604746727,5.58255586,1791.3,1791.1,0.819]
[1745604747340,11.69204449,1791.5,1791.1,0.819]
[1745604747562,13.17181179,1791.5,1791.1,0.819]
[1745604748258,5.58239096,1791.4,1791.1,0.819]
[1745604748939,13.17181723,1791.5,1791.1,0.819]
[1745604749256,5.58232178,1791.4,1791.1,0.819]
[1745604749655,7.5897673,1791.5,1791.1,0.819]
[1745604749846,11.69195045,1791.5,1791.1,0.819]
[1745604750247,5.58222735,1791.4,1791.1,0.819]
[1745604750451,5.582839,1791.3,1791.1,0.819]
[1745604750975,5.58277341,1791.3,1791.1,0.819]
[1745604751144,5.58284948,1791.2,1791.1,0.819]
[1745604751348,5.58277341,1791.3,1791.1,0.819]
[1745604751551,0.55827734,1791.2,1791.1,0.819]
[1745604751852,5.58257148,1791.3,1791.1,0.819]
[1745604752968,11.1648898,1791.4,1791.1,0.819]
[1745604753408,5.58237675,1791.4,1791.1,0.819]
[1745604753697,11.1648824,1791.4,1791.1,0.819]
[1745604753871,5.58258065,1791.3,1791.1,0.819]
[1745604754188,6.69907639,1791.3,1791.1,0.819]
[1745604756566,5.58284948,1791.2,1791.1,0.05]
[1745604756758,6.69907639,1791.3,1791.1,0.05]
[1745604759770,1.11649574,1791.3,1791.1,0.05]
[1745604760081,6.69906177,1791.3,1791.1,0.05]
[1745604760282,0.66990618,1791.2,1791.1,0.05]
[1745604760449,6.69906177,1791.3,1791.1,0.05]
[1745604761261,5.58284948,1791.2,1791.1,0.05]
[1745604769598,11.16596797,1791.2,1790.8,0.2804]
[1745604770300,5.58327751,1791.1,1790.8,0.2804]
[1745604771096,5.58284948,1791.2,1790.8,0.2804]
[1745604771302,7.50133711,1791.2,1790.8,0.2804]
[1745604771483,5.583296,1791.1,1790.8,0.2804]
[1745604771690,7.50158235,1791.2,1790.8,0.2804]
[1745604771891,5.58317393,1791.1,1790.8,0.2804]
[1745604773566,7.50158235,1791.2,1790.8,0.2804]
[1745604774006,1.91848763,1791.2,1790.8,0.2804]
[1745604774229,1.91848763,1791.2,1790.4,3.05584168]
[1745604774230,6.11,1791.7,1791.1,0.58887082]
[1745604774508,6.11,1792.0,1791.4,0.5533]
[1745604774716,6.8870035,1792.0,1791.4,0.60911563]
[1745604774917,6.8870035,1792.0,1791.4,0.5533]
[1745604775082,5.155,1792.1,1791.5,0.5533]
[1745604781381,6.37263868,1792.3,1791.5,1.14217082]
[1745604781583,6.11,1792.4,1791.7,0.58887082]
[1745604781817,6.11,1792.4,1791.8,0.5533]
[1745604782914,11.6891729,1792.4,1791.8,0.5533]
[1745604785008,17.26852579,1792.4,1791.8,0.5533]
[1745604785239,5.57960218,1792.3,1791.8,0.5533]
[1745604785587,5.57973864,1792.2,1791.8,0.5533]
[1745604786197,5.57960218,1792.3,1791.8,0.5533]
[1745604786399,11.15927831,1792.3,1791.8,0.5533]
[1745604786626,5.57960218,1792.3,1791.8,0.5533]
[1745604786926,5.57942308,1792.3,1791.8,0.5533]
[1745604787331,5.58030459,1792.1,1791.8,0.5533]
[1745604787633,5.58021248,1792.1,1791.8,0.5533]
[1745604787933,5.58021248,1792.1,1791.2,0.58887082]
[1745604787934,0.7683,1792.0,1791.6,0.5533]
[1745604788102,5.58076547,1791.9,1791.6,0.5533]
[1745604788491,6.1971086,1792.1,1791.6,0.5533]
[1745604788987,11.77739673,1792.1,1791.6,0.5533]
[1745604790024,6.1971086,1792.1,1791.6,0.5533]
[1745604790205,0.61971086,1792.0,1791.6,0.5533]
[1745604790726,6.20008427,1792.0,1791.6,0.5533]
[1745604790946,0.61971086,1792.0,1791.6,0.5533]
[1745604791153,6.19714701,1792.1,1791.6,0.5533]
[1745604791154,0.61690833,1792.1,1791.6,0.5533]
[1745604791332,6.1971117,1792.1,1791.6,0.5533]
[1745604791848,0.61690833,1792.1,1791.6,0.5533]
[1745604792547,6.36463086,1792.4,1791.6,0.5533]
[1745604792548,5.5792208,1792.4,1791.7,0.0558096]
[1745604792711,5.5792208,1792.4,1791.8,0.5533]
[1745604793312,5.5795106,1792.3,1791.8,0.5533]
[1745604793915,5.57989122,1792.2,1791.8,0.5533]
[1745604794140,6.13823745,1792.1,1791.8,0.5533]
[1745604795315,0.55798912,1792.1,1791.8,0.5533]
[1745604795516,6.1380898,1792.1,1791.8,0.5533]
[1745604796169,5.58049772,1792.0,1791.5,0.5533]
[1745604796730,6.33829772,1792.0,1791.5,0.5533]
[1745604796953,6.21450448,1791.9,1791.5,0.5533]
[1745604797119,0.63382977,1791.9,1791.5,0.5533]
[1745604798968,6.92280858,1792.1,1791.5,0.5533]
[1745604800044,5.58037467,1792.0,1791.5,0.5533]
[1745604800838,6.92280858,1792.1,1791.5,0.5533]
[1745604801256,12.50308368,1792.1,1791.5,0.5533]
[1745604801439,6.92280858,1792.1,1791.5,0.5533]
[1745604801640,0.69228086,1792.0,1791.5,0.5533]
[1745604801928,6.27268035,1792.0,1791.5,0.5533]
[1745604802205,5.58071516,1791.9,1791.5,0.5533]
[1745604802738,6.27273834,1792.0,1791.5,0.5533]
[1745604802944,5.58107267,1791.8,1791.5,0.5533]
[1745604803261,0.55810727,1791.7,1791.5,0.5533]
[1745604803567,0.55810727,1791.7,1791.2,0.5533]
[1745604803862,5.58178752,1791.6,1791.2,0.5533]
[1745604804065,5.5815324,1791.7,1791.2,0.5533]
[1745604804264,11.52536026,1791.8,1791.2,0.5533]
[1745604804952,5.145,1791.8,1791.4,1.14217082]
[1745604805157,5.145,1791.8,1791.4,0.5533]
[1745604808266,5.146,1792.2,1791.7,0.5533]
[1745604808434,5.762836,1792.2,1791.7,0.5533]
[1745604811465,1.38407082,1792.1,1791.7,0.5533]
[1745604811776,11.16122252,1792.0,1791.5,0.5533]
[1745604811973,5.58140808,1791.7,1791.5,0.5533]
[1745604812272,5.58140808,1791.7,1791.3,0.5533]
[1745604812273,6.13983817,1791.6,1791.3,0.5533]
[1745604812668,5.58194168,1791.5,1791.3,0.5533]
[1745604812843,5.58194168,1791.5,1790.9,0.5533]
[1745604813044,5.58205817,1791.5,1790.9,0.5533]
[1745604813459,12.24992556,1791.6,1790.9,0.5533]
[1745604813460,17.83176406,1791.6,1790.9,0.5533]
[1745604813639,1.78317641,1791.5,1790.9,0.5533]
[1745604813842,7.36514368,1791.5,1790.9,0.5533]
[1745604814977,1.78317641,1791.5,1791.0,0.5533]
[1745604815165,6.11,1791.6,1791.1,0.58887082]
[1745604815365,6.11,1791.6,1791.2,0.5533]
[1745604817282,5.145,1791.8,1791.2,0.5533]
[1745604817488,16.30735561,1791.8,1791.2,0.5533]
[1745604817666,1.63073556,1791.7,1791.2,0.5533]
[1745604817982,5.145,1791.8,1791.2,0.5533]
[1745604819686,5.145,1791.8,1791.3,1.14217082]
[1745604819885,5.145,1791.8,1791.4,0.5533]
[1745604820082,6.8815,1792.1,1791.4,0.5533]
[1745604822756,5.58088623,1791.9,1791.4,0.5533]
[1745604822985,0.55808862,1791.8,1791.4,0.5533]
[1745604823180,13.05055547,1792.1,1791.4,0.5533]